[Event "Early-Titled-Tuesday-Blitz-March-12-2024"]
[Site "Chess.com"]
[Date "2024.03.12"]
[Round "10"]
[White "Smoking_Crow"]
[Black "matagordo"]
[Result "1-0"]
[WhiteElo "2578"]
[BlackElo "2290"]
[TimeControl "180+1"]
[EndTime "9:50:45 PDT"]
[Termination "Smoking_Crow won by resignation"]

1. d4 {[%clk 0:02:55.1]} 1... Nf6 {[%clk 0:02:59.3]} 2. c4 {[%clk 0:02:52.1]}
2... d6 {[%clk 0:02:59]} 3. Nc3 {[%clk 0:02:51.6]} 3... e5 {[%clk 0:02:59.1]} 4.
dxe5 {[%clk 0:02:50.5]} 4... dxe5 {[%clk 0:03:00]} 5. Qxd8+ {[%clk 0:02:51.1]}
5... Kxd8 {[%clk 0:03:00.9]} 6. Nf3 {[%clk 0:02:48.8]} 6... Nbd7 {[%clk
0:02:41.6]} 7. Bg5 {[%clk 0:02:47.1]} 7... c6 {[%clk 0:02:42]} 8. Bxf6+ {[%clk
0:02:46.4]} 8... gxf6 {[%clk 0:02:42.9]} 9. e3 {[%clk 0:02:45.7]} 9... Kc7
{[%clk 0:02:43.2]} 10. O-O-O {[%clk 0:02:45.6]} 10... a5 {[%clk 0:02:42.3]} 11.
Bd3 {[%clk 0:02:45.8]} 11... a4 {[%clk 0:02:35]} 12. Nh4 {[%clk 0:02:44.4]}
12... a3 {[%clk 0:02:29.2]} 13. b3 {[%clk 0:02:44.2]} 13... Bb4 {[%clk
0:02:24.7]} 14. Ne2 {[%clk 0:02:42.3]} 14... Nc5 {[%clk 0:02:21.1]} 15. Bf5
{[%clk 0:02:42.3]} 15... Be6 {[%clk 0:01:40.9]} 16. Kc2 {[%clk 0:02:39.2]} 16...
Rhd8 {[%clk 0:01:33.7]} 17. Ng3 {[%clk 0:02:32.9]} 17... Rxd1 {[%clk 0:01:03.7]}
18. Rxd1 {[%clk 0:02:30.9]} 18... b5 {[%clk 0:01:04.6]} 19. cxb5 {[%clk
0:02:25.7]} 19... cxb5 {[%clk 0:01:02.6]} 20. Kb1 {[%clk 0:02:15.9]} 20... Bxb3
{[%clk 0:00:24.6]} 21. axb3 {[%clk 0:02:16.8]} 21... Nxb3 {[%clk 0:00:25.2]} 22.
Ka2 {[%clk 0:02:13.1]} 22... Nc5 {[%clk 0:00:21.3]} 23. Ne4 {[%clk 0:02:12.5]}
23... Kb6 {[%clk 0:00:18.4]} 24. Nxc5 {[%clk 0:02:11.8]} 24... Bxc5 {[%clk
0:00:19.3]} 25. Nf3 {[%clk 0:02:10.4]} 25... b4 {[%clk 0:00:18.7]} 26. Bc2
{[%clk 0:02:09.7]} 26... h5 {[%clk 0:00:13.5]} 27. Bb3 {[%clk 0:02:09.6]} 27...
Rg8 {[%clk 0:00:11.3]} 28. g3 {[%clk 0:02:09.4]} 28... Rc8 {[%clk 0:00:08.7]}
29. Bxf7 {[%clk 0:02:08.2]} 29... Bf8 {[%clk 0:00:07.8]} 30. Bb3 {[%clk
0:02:07.6]} 30... Rc3 {[%clk 0:00:03.6]} 31. Nd2 {[%clk 0:02:05.7]} 31... Rd3
{[%clk 0:00:03]} 32. Nc4+ {[%clk 0:02:05.1]} 1-0

[Event "Early-Titled-Tuesday-Blitz-March-12-2024"]
[Site "Chess.com"]
[Date "2024.03.12"]
[Round "10"]
[White "awesomevishesh"]
[Black "Byniolus"]
[Result "1-0"]
[WhiteElo "2652"]
[BlackElo "2813"]
[TimeControl "180+1"]
[EndTime "9:50:51 PDT"]
[Termination "awesomevishesh won by resignation"]

1. d4 {[%clk 0:02:58.3]} 1... d6 {[%clk 0:02:59.8]} 2. Nf3 {[%clk 0:02:54.8]}
2... Bg4 {[%clk 0:02:59.2]} 3. e4 {[%clk 0:02:54.5]} 3... Nf6 {[%clk 0:02:58.5]}
4. Nc3 {[%clk 0:02:54]} 4... e6 {[%clk 0:02:57.6]} 5. h3 {[%clk 0:02:53.9]} 5...
Bh5 {[%clk 0:02:57.6]} 6. Qe2 {[%clk 0:02:53.7]} 6... c6 {[%clk 0:02:57.5]} 7.
g4 {[%clk 0:02:53.5]} 7... Bg6 {[%clk 0:02:58.1]} 8. h4 {[%clk 0:02:52.7]} 8...
h5 {[%clk 0:02:58.5]} 9. g5 {[%clk 0:02:52.6]} 9... Nfd7 {[%clk 0:02:58.9]} 10.
Bh3 {[%clk 0:02:48.8]} 10... Be7 {[%clk 0:02:59]} 11. d5 {[%clk 0:02:47.3]}
11... cxd5 {[%clk 0:02:59.9]} 12. exd5 {[%clk 0:02:47.3]} 12... e5 {[%clk
0:03:00.8]} 13. Be3 {[%clk 0:02:47.2]} 13... O-O {[%clk 0:03:00.2]} 14. O-O-O
{[%clk 0:02:45.3]} 14... Na6 {[%clk 0:02:59.4]} 15. Nxe5 {[%clk 0:02:41.2]}
15... Nxe5 {[%clk 0:02:50.8]} 16. f4 {[%clk 0:02:40.9]} 16... Ng4 {[%clk
0:02:47]} 17. Bxg4 {[%clk 0:02:40.5]} 17... hxg4 {[%clk 0:02:47.9]} 18. h5
{[%clk 0:02:33.7]} 18... Bf5 {[%clk 0:02:45.6]} 19. h6 {[%clk 0:02:25.6]} 19...
g6 {[%clk 0:02:08.8]} 20. h7+ {[%clk 0:02:15.6]} 20... Kh8 {[%clk 0:02:03.2]}
21. Bd4+ {[%clk 0:02:13.5]} 21... f6 {[%clk 0:02:03.7]} 22. Rde1 {[%clk
0:02:07.8]} 22... Rf7 {[%clk 0:01:54.1]} 23. Ne4 {[%clk 0:01:49.7]} 23... Nc7
{[%clk 0:01:23]} 24. gxf6 {[%clk 0:01:32.1]} 24... Bxf6 {[%clk 0:00:34.5]} 25.
Nxf6 {[%clk 0:01:30.6]} 25... Rxf6 {[%clk 0:00:35.4]} 26. Qe8+ {[%clk
0:01:17.1]} 1-0

[Event "Early-Titled-Tuesday-Blitz-March-12-2024"]
[Site "Chess.com"]
[Date "2024.03.12"]
[Round "10"]
[White "killer_dreams"]
[Black "kidagent"]
[Result "0-1"]
[WhiteElo "2498"]
[BlackElo "2356"]
[TimeControl "180+1"]
[EndTime "9:51:00 PDT"]
[Termination "kidagent won by resignation"]

1. e4 {[%clk 0:03:00.9]} 1... c6 {[%clk 0:02:59.7]} 2. d4 {[%clk 0:02:56.5]}
2... d5 {[%clk 0:03:00.2]} 3. Nc3 {[%clk 0:02:57.3]} 3... dxe4 {[%clk
0:03:00.2]} 4. Nxe4 {[%clk 0:02:58.2]} 4... Bf5 {[%clk 0:03:00.2]} 5. Ng3 {[%clk
0:02:56.8]} 5... Bg6 {[%clk 0:03:00.5]} 6. h4 {[%clk 0:02:57.3]} 6... h6 {[%clk
0:03:00.9]} 7. Bd3 {[%clk 0:02:53.6]} 7... Bxd3 {[%clk 0:02:59.7]} 8. Qxd3
{[%clk 0:02:54.5]} 8... e6 {[%clk 0:02:59.1]} 9. Nf3 {[%clk 0:02:49.2]} 9... Nd7
{[%clk 0:02:58.6]} 10. Bd2 {[%clk 0:02:49]} 10... Ngf6 {[%clk 0:02:58.6]} 11.
O-O-O {[%clk 0:02:49]} 11... Qc7 {[%clk 0:02:58.6]} 12. Kb1 {[%clk 0:02:49.7]}
12... Be7 {[%clk 0:02:54.1]} 13. c4 {[%clk 0:02:47.8]} 13... O-O {[%clk
0:02:51.7]} 14. Bc3 {[%clk 0:02:48.4]} 14... Rfd8 {[%clk 0:02:41.7]} 15. Rhe1
{[%clk 0:02:47.7]} 15... b5 {[%clk 0:02:36.5]} 16. cxb5 {[%clk 0:02:19.7]} 16...
cxb5 {[%clk 0:02:36.3]} 17. Qxb5 {[%clk 0:02:20.6]} 17... Rab8 {[%clk
0:02:33.5]} 18. Qa5 {[%clk 0:02:15.5]} 18... Qb7 {[%clk 0:02:21.9]} 19. Nf5
{[%clk 0:02:02.6]} 19... Bf8 {[%clk 0:02:17.8]} 20. Ne3 {[%clk 0:01:59.1]} 20...
Nb6 {[%clk 0:02:14.1]} 21. Ne5 {[%clk 0:01:54.3]} 21... Nbd5 {[%clk 0:02:06.6]}
22. Nxd5 {[%clk 0:01:44]} 22... Nxd5 {[%clk 0:02:07.5]} 23. Re2 {[%clk
0:01:38.7]} 23... Rdc8 {[%clk 0:02:01.8]} 24. Rc1 {[%clk 0:01:31.2]} 24... Rxc3
{[%clk 0:01:53.2]} 25. Rxc3 {[%clk 0:01:17.7]} 25... Bb4 {[%clk 0:01:52.2]} 26.
Rb3 {[%clk 0:00:41.8]} 26... Bxa5 {[%clk 0:01:51.9]} 27. Rxb7 {[%clk 0:00:42.7]}
27... Rxb7 {[%clk 0:01:52.2]} 28. Rc2 {[%clk 0:00:41.9]} 28... Rc7 {[%clk
0:01:45.3]} 29. Nc6 {[%clk 0:00:41.6]} 29... Bb6 {[%clk 0:01:42.3]} 30. a4
{[%clk 0:00:41.5]} 30... a5 {[%clk 0:01:34.6]} 31. b3 {[%clk 0:00:40.4]} 31...
Kf8 {[%clk 0:01:33.3]} 32. Kb2 {[%clk 0:00:37.9]} 32... f6 {[%clk 0:01:30.6]}
33. Rc4 {[%clk 0:00:28]} 33... Ke8 {[%clk 0:01:29.3]} 0-1

[Event "Early-Titled-Tuesday-Blitz-March-12-2024"]
[Site "Chess.com"]
[Date "2024.03.12"]
[Round "10"]
[White "BilicVladimir"]
[Black "Lady_Nika"]
[Result "1-0"]
[WhiteElo "2682"]
[BlackElo "2547"]
[TimeControl "180+1"]
[EndTime "9:51:14 PDT"]
[Termination "BilicVladimir won by resignation"]

1. e4 {[%clk 0:02:16.9]} 1... e6 {[%clk 0:02:59.6]} 2. d4 {[%clk 0:02:16.4]}
2... d5 {[%clk 0:03:00]} 3. Nd2 {[%clk 0:02:17]} 3... b6 {[%clk 0:02:57.6]} 4.
exd5 {[%clk 0:02:16.4]} 4... exd5 {[%clk 0:02:57.5]} 5. Ngf3 {[%clk 0:02:16.5]}
5... Nf6 {[%clk 0:02:57.4]} 6. Bd3 {[%clk 0:02:16.6]} 6... Qe7+ {[%clk
0:02:57.2]} 7. Qe2 {[%clk 0:02:15.8]} 7... Qxe2+ {[%clk 0:02:56.5]} 8. Kxe2
{[%clk 0:02:16.2]} 8... Bd6 {[%clk 0:02:56.3]} 9. Ne5 {[%clk 0:02:15.8]} 9...
Nbd7 {[%clk 0:02:55.2]} 10. Ndf3 {[%clk 0:02:12.8]} 10... a6 {[%clk 0:02:48.2]}
11. Bg5 {[%clk 0:02:10.2]} 11... O-O {[%clk 0:02:47.6]} 12. Rhe1 {[%clk
0:02:09.9]} 12... h6 {[%clk 0:02:46.9]} 13. Bh4 {[%clk 0:02:09.1]} 13... Nh5
{[%clk 0:02:46.3]} 14. Kf1 {[%clk 0:02:04.7]} 14... Nf4 {[%clk 0:02:45.2]} 15.
Bg3 {[%clk 0:02:02.8]} 15... Nxd3 {[%clk 0:02:43.9]} 16. Nxd3 {[%clk 0:02:00.3]}
16... Bxg3 {[%clk 0:02:43]} 17. hxg3 {[%clk 0:02:01.2]} 17... a5 {[%clk
0:02:42.1]} 18. Nde5 {[%clk 0:02:00.4]} 18... Nf6 {[%clk 0:02:40.4]} 19. Nd2
{[%clk 0:01:58.6]} 19... Ba6+ {[%clk 0:02:40.1]} 20. Kg1 {[%clk 0:01:58.7]}
20... c5 {[%clk 0:02:40.2]} 21. dxc5 {[%clk 0:01:56.6]} 21... bxc5 {[%clk
0:02:40.1]} 22. Nb3 {[%clk 0:01:56.6]} 22... Rfb8 {[%clk 0:02:25.5]} 23. Rab1
{[%clk 0:01:56]} 23... Bc4 {[%clk 0:02:24.3]} 24. Nxc4 {[%clk 0:01:52.8]} 24...
dxc4 {[%clk 0:02:24.1]} 25. Nxc5 {[%clk 0:01:52.8]} 25... Rb5 {[%clk 0:02:23.6]}
26. Ne4 {[%clk 0:01:50.9]} 26... Nxe4 {[%clk 0:02:19.7]} 27. Rxe4 {[%clk
0:01:49.9]} 27... c3 {[%clk 0:02:19.4]} 28. b3 {[%clk 0:01:49.8]} 28... a4
{[%clk 0:02:15.2]} 29. Rc4 {[%clk 0:01:48.4]} 29... a3 {[%clk 0:02:07]} 30. Rxc3
{[%clk 0:01:46.8]} 30... Rb4 {[%clk 0:02:06.7]} 31. Rd3 {[%clk 0:01:38.9]} 31...
Rc8 {[%clk 0:02:01.9]} 32. c3 {[%clk 0:01:33.4]} 32... Re4 {[%clk 0:02:01.7]}
33. Kf1 {[%clk 0:01:22.4]} 33... Rc5 {[%clk 0:01:55.7]} 34. b4 {[%clk
0:01:21.2]} 34... Rh5 {[%clk 0:01:55.3]} 35. Kg1 {[%clk 0:01:08.2]} 35... Re2
{[%clk 0:01:55.2]} 36. c4 {[%clk 0:00:55.5]} 36... Rxa2 {[%clk 0:01:54.8]} 37.
b5 {[%clk 0:00:50.5]} 37... Rc5 {[%clk 0:01:54]} 38. b6 {[%clk 0:00:50.2]} 38...
Rb2 {[%clk 0:01:40.7]} 39. Rxb2 {[%clk 0:00:48.7]} 39... axb2 {[%clk 0:01:38.9]}
40. Rb3 {[%clk 0:00:48.5]} 40... Rxc4 {[%clk 0:01:28.1]} 41. b7 {[%clk
0:00:47.2]} 41... Rc1+ {[%clk 0:01:25.1]} 42. Kh2 {[%clk 0:00:47.2]} 42... b1=Q
{[%clk 0:01:25.1]} 43. b8=Q+ {[%clk 0:00:46.2]} 1-0

[Event "Early-Titled-Tuesday-Blitz-March-12-2024"]
[Site "Chess.com"]
[Date "2024.03.12"]
[Round "10"]
[White "DonkyDonkyDonkey"]
[Black "Aygehovit1992"]
[Result "1-0"]
[WhiteElo "2897"]
[BlackElo "2736"]
[TimeControl "180+1"]
[EndTime "9:51:42 PDT"]
[Termination "DonkyDonkyDonkey won on time"]

1. e4 {[%clk 0:03:00.9]} 1... c5 {[%clk 0:02:59.4]} 2. Nc3 {[%clk 0:03:01.1]}
2... Nc6 {[%clk 0:02:58.6]} 3. f4 {[%clk 0:03:01.8]} 3... g6 {[%clk 0:02:56.8]}
4. Nf3 {[%clk 0:03:02.3]} 4... Bg7 {[%clk 0:02:57.3]} 5. Bc4 {[%clk 0:03:03.1]}
5... e6 {[%clk 0:02:56.7]} 6. O-O {[%clk 0:03:03.6]} 6... Nge7 {[%clk
0:02:56.9]} 7. d3 {[%clk 0:03:04.4]} 7... O-O {[%clk 0:02:52.3]} 8. Qe1 {[%clk
0:03:04.6]} 8... d5 {[%clk 0:02:52.2]} 9. Bb3 {[%clk 0:03:04.9]} 9... Na5 {[%clk
0:02:51]} 10. f5 {[%clk 0:03:05]} 10... Nxb3 {[%clk 0:02:50.8]} 11. axb3 {[%clk
0:03:05.9]} 11... exf5 {[%clk 0:02:50.6]} 12. Bg5 {[%clk 0:03:05.9]} 12... f6
{[%clk 0:02:48.2]} 13. Bd2 {[%clk 0:03:04.5]} 13... fxe4 {[%clk 0:02:48]} 14.
dxe4 {[%clk 0:03:04.6]} 14... d4 {[%clk 0:02:48.3]} 15. Ne2 {[%clk 0:03:04.8]}
15... Re8 {[%clk 0:02:45]} 16. Nf4 {[%clk 0:03:04.7]} 16... Nc6 {[%clk
0:02:44.8]} 17. Qe2 {[%clk 0:03:03.1]} 17... Qc7 {[%clk 0:02:38.6]} 18. Qc4+
{[%clk 0:03:00]} 18... Qf7 {[%clk 0:02:38.5]} 19. Qxc5 {[%clk 0:02:59.4]} 19...
Bg4 {[%clk 0:02:32.4]} 20. Nd5 {[%clk 0:02:55.7]} 20... Bxf3 {[%clk 0:02:29.6]}
21. Rxf3 {[%clk 0:02:55.2]} 21... Rxe4 {[%clk 0:02:26.2]} 22. Raf1 {[%clk
0:02:51.4]} 22... Re5 {[%clk 0:02:20]} 23. Nxf6+ {[%clk 0:02:31.2]} 23... Bxf6
{[%clk 0:02:18.6]} 24. Qd6 {[%clk 0:02:32]} 24... Rf5 {[%clk 0:01:43]} 25. Rxf5
{[%clk 0:02:31.7]} 25... gxf5 {[%clk 0:01:43.9]} 26. Rxf5 {[%clk 0:02:32.1]}
26... Be7 {[%clk 0:01:13.3]} 27. Qg3+ {[%clk 0:02:23.2]} 27... Qg7 {[%clk
0:01:12.4]} 28. Qh3 {[%clk 0:02:23.9]} 28... Qg6 {[%clk 0:00:52.6]} 29. Bh6
{[%clk 0:02:11.9]} 29... Re8 {[%clk 0:00:38.1]} 30. Rf3 {[%clk 0:02:09.5]} 30...
Bd6 {[%clk 0:00:35.8]} 31. Bd2 {[%clk 0:01:54.6]} 31... Qxc2 {[%clk 0:00:30.5]}
32. Qd7 {[%clk 0:01:54.6]} 32... Qg6 {[%clk 0:00:18]} 33. Qxb7 {[%clk
0:01:49.7]} 33... d3 {[%clk 0:00:17.5]} 34. Kf1 {[%clk 0:01:45.1]} 34... Nd8
{[%clk 0:00:03.9]} 35. Qd5+ {[%clk 0:01:44.9]} 35... Nf7 {[%clk 0:00:03.8]} 36.
Bc3 {[%clk 0:01:40.9]} 36... Be5 {[%clk 0:00:03.7]} 37. Qd7 {[%clk 0:01:32.4]}
37... Bxc3 {[%clk 0:00:03]} 38. Qxe8+ {[%clk 0:01:32.4]} 38... Kg7 {[%clk
0:00:03.5]} 39. bxc3 {[%clk 0:01:27.6]} 39... d2 {[%clk 0:00:02.8]} 40. Qxf7+
{[%clk 0:01:24.1]} 1-0

[Event "Early-Titled-Tuesday-Blitz-March-12-2024"]
[Site "Chess.com"]
[Date "2024.03.12"]
[Round "10"]
[White "david_gomez"]
[Black "suyu28"]
[Result "0-1"]
[WhiteElo "2624"]
[BlackElo "2866"]
[TimeControl "180+1"]
[EndTime "9:51:49 PDT"]
[Termination "suyu28 won by resignation"]

1. e4 {[%clk 0:03:00.9]} 1... c6 {[%clk 0:02:59.9]} 2. d4 {[%clk 0:03:00.1]}
2... d5 {[%clk 0:03:00.5]} 3. exd5 {[%clk 0:03:01]} 3... cxd5 {[%clk 0:03:00.9]}
4. c4 {[%clk 0:03:01.9]} 4... Nf6 {[%clk 0:03:00.9]} 5. Nc3 {[%clk 0:03:01.4]}
5... Nc6 {[%clk 0:03:00.9]} 6. Nf3 {[%clk 0:02:57.8]} 6... Bg4 {[%clk
0:02:57.7]} 7. cxd5 {[%clk 0:02:57.4]} 7... Nxd5 {[%clk 0:02:57.2]} 8. Qb3
{[%clk 0:02:57.6]} 8... Bxf3 {[%clk 0:02:56.8]} 9. gxf3 {[%clk 0:02:58.5]} 9...
e6 {[%clk 0:02:52.8]} 10. Qxb7 {[%clk 0:02:57.9]} 10... Nxd4 {[%clk 0:02:52.9]}
11. Bb5+ {[%clk 0:02:57.9]} 11... Nxb5 {[%clk 0:02:52.6]} 12. Qc6+ {[%clk
0:02:58.1]} 12... Ke7 {[%clk 0:02:53.2]} 13. Qc5+ {[%clk 0:02:58.7]} 13... Nd6
{[%clk 0:02:49.4]} 14. Nxd5+ {[%clk 0:02:54.3]} 14... exd5 {[%clk 0:02:49.9]}
15. O-O {[%clk 0:02:54.2]} 15... Qb6 {[%clk 0:02:39.7]} 16. Qxd5 {[%clk
0:02:44.3]} 16... Re8 {[%clk 0:02:39.2]} 17. Bf4 {[%clk 0:02:39.9]} 17... Kd7
{[%clk 0:02:37.3]} 18. Rfd1 {[%clk 0:02:37.1]} 18... Re6 {[%clk 0:02:36.4]} 19.
Rac1 {[%clk 0:02:37.3]} 19... Be7 {[%clk 0:02:26.6]} 20. Be3 {[%clk 0:02:33.2]}
20... Qa6 {[%clk 0:02:14]} 21. Rc3 {[%clk 0:02:19.2]} 21... Rc8 {[%clk 0:02:03]}
22. Ra3 {[%clk 0:02:17.8]} 22... Qc4 {[%clk 0:01:52.6]} 23. Rxa7+ {[%clk
0:01:38.8]} 23... Ke8 {[%clk 0:01:52.6]} 24. Qh5 {[%clk 0:01:33.9]} 24... Qe2
{[%clk 0:01:35.3]} 25. Qd5 {[%clk 0:01:25.6]} 25... Rxe3 {[%clk 0:00:22.7]} 26.
fxe3 {[%clk 0:01:24]} 26... Qxe3+ {[%clk 0:00:22.8]} 27. Kh1 {[%clk 0:01:24.6]}
27... Qxa7 {[%clk 0:00:23.7]} 28. Re1 {[%clk 0:01:14.4]} 28... Kf8 {[%clk
0:00:23.8]} 29. b4 {[%clk 0:01:11.7]} 29... Qb7 {[%clk 0:00:22.9]} 30. Qd3
{[%clk 0:01:08.3]} 30... g6 {[%clk 0:00:23.1]} 31. a3 {[%clk 0:01:07.2]} 31...
Nf5 {[%clk 0:00:22.3]} 32. Qe4 {[%clk 0:01:02.5]} 32... Qxe4 {[%clk 0:00:20]}
33. fxe4 {[%clk 0:01:03.4]} 33... Nd4 {[%clk 0:00:20.6]} 34. Rb1 {[%clk
0:01:02.5]} 34... Rc3 {[%clk 0:00:19.8]} 35. a4 {[%clk 0:01:02.3]} 35... Rc2
{[%clk 0:00:20.2]} 36. Kg1 {[%clk 0:01:01.2]} 36... Nf3+ {[%clk 0:00:20.5]} 37.
Kf1 {[%clk 0:01:01.9]} 37... Bh4 {[%clk 0:00:21]} 0-1

[Event "Early-Titled-Tuesday-Blitz-March-12-2024"]
[Site "Chess.com"]
[Date "2024.03.12"]
[Round "10"]
[White "Veleamater"]
[Black "koncheto"]
[Result "0-1"]
[WhiteElo "2313"]
[BlackElo "2483"]
[TimeControl "180+1"]
[EndTime "9:51:50 PDT"]
[Termination "koncheto won by resignation"]

1. g3 {[%clk 0:03:00.9]} 1... Nf6 {[%clk 0:02:58.8]} 2. Bg2 {[%clk 0:03:01.8]}
2... d5 {[%clk 0:02:59.7]} 3. d3 {[%clk 0:03:02.2]} 3... Bf5 {[%clk 0:03:00.4]}
4. Nf3 {[%clk 0:03:02.6]} 4... h6 {[%clk 0:03:01]} 5. O-O {[%clk 0:03:03.2]}
5... c5 {[%clk 0:03:01.6]} 6. h3 {[%clk 0:03:03.5]} 6... e6 {[%clk 0:03:02.2]}
7. Nc3 {[%clk 0:03:03.6]} 7... Nc6 {[%clk 0:03:02.8]} 8. Bf4 {[%clk 0:03:02]}
8... Bd6 {[%clk 0:03:02.7]} 9. Bxd6 {[%clk 0:03:01.2]} 9... Qxd6 {[%clk
0:03:03.6]} 10. Nd2 {[%clk 0:02:58.3]} 10... d4 {[%clk 0:03:03.8]} 11. Nce4
{[%clk 0:02:56.6]} 11... Nxe4 {[%clk 0:03:03.6]} 12. dxe4 {[%clk 0:02:57]} 12...
Bh7 {[%clk 0:03:03.1]} 13. f4 {[%clk 0:02:57.4]} 13... e5 {[%clk 0:03:03.1]} 14.
f5 {[%clk 0:02:57.1]} 14... O-O {[%clk 0:03:01.6]} 15. Nc4 {[%clk 0:02:48.4]}
15... Qc7 {[%clk 0:02:57.2]} 16. e3 {[%clk 0:02:48.7]} 16... b5 {[%clk 0:02:57]}
17. Na3 {[%clk 0:02:45.8]} 17... a6 {[%clk 0:02:57.3]} 18. exd4 {[%clk
0:02:45.3]} 18... exd4 {[%clk 0:02:57.4]} 19. Qf3 {[%clk 0:02:28.7]} 19... Qe5
{[%clk 0:02:53.7]} 20. Qf4 {[%clk 0:02:26.2]} 20... Rad8 {[%clk 0:02:53.5]} 21.
Rad1 {[%clk 0:02:23.5]} 21... Rfe8 {[%clk 0:02:52]} 22. Nb1 {[%clk 0:02:21.1]}
22... c4 {[%clk 0:02:49.1]} 23. Nd2 {[%clk 0:02:18.9]} 23... d3 {[%clk
0:02:39.8]} 24. c3 {[%clk 0:02:17.5]} 24... a5 {[%clk 0:02:36.5]} 25. a3 {[%clk
0:02:11.5]} 25... Qc5+ {[%clk 0:02:28.7]} 26. Kh2 {[%clk 0:02:10.4]} 26... b4
{[%clk 0:02:29.2]} 27. axb4 {[%clk 0:02:08.7]} 27... axb4 {[%clk 0:02:30.1]} 28.
Rde1 {[%clk 0:02:00.8]} 28... bxc3 {[%clk 0:02:27.3]} 29. bxc3 {[%clk
0:02:00.3]} 29... Ne5 {[%clk 0:02:28.2]} 30. g4 {[%clk 0:01:56.9]} 30... Qa3
{[%clk 0:02:22.7]} 31. Rc1 {[%clk 0:01:55]} 31... f6 {[%clk 0:02:22.2]} 32. h4
{[%clk 0:01:54.9]} 32... Rb8 {[%clk 0:02:20]} 33. g5 {[%clk 0:01:44]} 33... hxg5
{[%clk 0:02:17.8]} 34. hxg5 {[%clk 0:01:44.1]} 34... Rb2 {[%clk 0:02:18.7]} 35.
g6 {[%clk 0:01:39.2]} 35... Bxg6 {[%clk 0:02:16.5]} 36. fxg6 {[%clk 0:01:39.3]}
36... Nxg6 {[%clk 0:02:17.4]} 37. Qe3 {[%clk 0:01:31.5]} 37... Ne5 {[%clk
0:02:17.2]} 38. Kg3 {[%clk 0:01:31.2]} 38... Rc2 {[%clk 0:02:03.8]} 39. Nf3
{[%clk 0:00:44.4]} 39... Qxc3 {[%clk 0:01:59.7]} 40. Rb1 {[%clk 0:00:35.2]}
40... d2 {[%clk 0:01:54.5]} 41. Qf4 {[%clk 0:00:18.1]} 41... Rd8 {[%clk
0:01:52.1]} 42. Rbd1 {[%clk 0:00:17]} 42... Qd3 {[%clk 0:01:45.3]} 43. Kh2
{[%clk 0:00:15.7]} 43... Nxf3+ {[%clk 0:01:43.6]} 44. Bxf3 {[%clk 0:00:14.8]}
44... c3 {[%clk 0:01:43.4]} 45. Rg1 {[%clk 0:00:14.5]} 45... Qd6 {[%clk
0:01:41.7]} 46. e5 {[%clk 0:00:12.7]} 46... Qxe5 {[%clk 0:01:41.8]} 47. Qxe5
{[%clk 0:00:12]} 47... fxe5 {[%clk 0:01:42.7]} 48. Be4 {[%clk 0:00:11.9]} 48...
Rb2 {[%clk 0:01:40.9]} 49. Rg3 {[%clk 0:00:12]} 49... c2 {[%clk 0:01:38.9]} 50.
Bxc2 {[%clk 0:00:09.3]} 50... Rxc2 {[%clk 0:01:39.8]} 51. Rg2 {[%clk 0:00:07]}
51... e4 {[%clk 0:01:39.9]} 52. Re2 {[%clk 0:00:06.6]} 52... e3 {[%clk
0:01:37.9]} 53. Kg3 {[%clk 0:00:06.6]} 53... Rc1 {[%clk 0:01:37.8]} 0-1

[Event "Early-Titled-Tuesday-Blitz-March-12-2024"]
[Site "Chess.com"]
[Date "2024.03.12"]
[Round "10"]
[White "ValeriyGrinev"]
[Black "Kotofeyca"]
[Result "1-0"]
[WhiteElo "2579"]
[BlackElo "2448"]
[TimeControl "180+1"]
[EndTime "9:51:56 PDT"]
[Termination "ValeriyGrinev won on time"]

1. d4 {[%clk 0:03:00.9]} 1... d5 {[%clk 0:03:00]} 2. c4 {[%clk 0:02:59.6]} 2...
c6 {[%clk 0:03:00.7]} 3. Nf3 {[%clk 0:02:58.6]} 3... Nf6 {[%clk 0:03:01.2]} 4.
Qc2 {[%clk 0:02:59.2]} 4... e6 {[%clk 0:02:52.3]} 5. Nbd2 {[%clk 0:02:56.2]}
5... Be7 {[%clk 0:02:45.7]} 6. e4 {[%clk 0:02:53.2]} 6... dxe4 {[%clk
0:02:39.3]} 7. Nxe4 {[%clk 0:02:54.1]} 7... Nxe4 {[%clk 0:02:36.6]} 8. Qxe4
{[%clk 0:02:55]} 8... Bb4+ {[%clk 0:02:36]} 9. Bd2 {[%clk 0:02:54.9]} 9... Bxd2+
{[%clk 0:02:31.4]} 10. Nxd2 {[%clk 0:02:55.8]} 10... Qb6 {[%clk 0:02:17]} 11.
Bd3 {[%clk 0:02:52.4]} 11... Qxb2 {[%clk 0:02:05.9]} 12. Rd1 {[%clk 0:02:50.8]}
12... Nd7 {[%clk 0:02:00.9]} 13. O-O {[%clk 0:02:50]} 13... Nf6 {[%clk
0:02:00.9]} 14. Qh4 {[%clk 0:02:50.5]} 14... Bd7 {[%clk 0:01:27.9]} 15. c5
{[%clk 0:02:49.4]} 15... b5 {[%clk 0:00:40.2]} 16. cxb6 {[%clk 0:02:41.9]} 16...
axb6 {[%clk 0:00:40]} 17. Nc4 {[%clk 0:02:41.6]} 17... Qxa2 {[%clk 0:00:31.3]}
18. Nxb6 {[%clk 0:02:34.5]} 18... Rb8 {[%clk 0:00:25.5]} 19. Ra1 {[%clk
0:02:24.4]} 19... Qd2 {[%clk 0:00:22.6]} 20. Nxd7 {[%clk 0:02:09.2]} 20... Nxd7
{[%clk 0:00:20.3]} 21. Rfd1 {[%clk 0:02:09.9]} 21... Qh6 {[%clk 0:00:19.5]} 22.
Qg3 {[%clk 0:02:06.9]} 22... O-O {[%clk 0:00:18.6]} 23. Qc7 {[%clk 0:02:06.1]}
23... Nf6 {[%clk 0:00:17.1]} 24. Qxc6 {[%clk 0:02:06.5]} 24... Rbc8 {[%clk
0:00:16.4]} 25. Qf3 {[%clk 0:02:05.3]} 25... Rfd8 {[%clk 0:00:16.2]} 26. g3
{[%clk 0:02:03.8]} 26... Nd5 {[%clk 0:00:15.8]} 27. Ra7 {[%clk 0:02:01.4]} 27...
Qf6 {[%clk 0:00:16]} 28. Qe4 {[%clk 0:02:00.6]} 28... Rc7 {[%clk 0:00:14.5]} 29.
Qxh7+ {[%clk 0:01:59.2]} 29... Kf8 {[%clk 0:00:14.2]} 30. Ra5 {[%clk 0:01:50.6]}
30... Qxd4 {[%clk 0:00:11.4]} 31. h4 {[%clk 0:01:43.3]} 31... g6 {[%clk
0:00:10.8]} 32. h5 {[%clk 0:01:42.3]} 32... Qg7 {[%clk 0:00:10.9]} 33. hxg6
{[%clk 0:01:41.9]} 33... Qxh7 {[%clk 0:00:08.4]} 34. gxh7 {[%clk 0:01:42.2]}
34... Kg7 {[%clk 0:00:09.3]} 35. Be4 {[%clk 0:01:39.7]} 35... Rcd7 {[%clk
0:00:06.4]} 36. Kg2 {[%clk 0:01:34.7]} 36... f5 {[%clk 0:00:06.1]} 37. Bxd5
{[%clk 0:01:32.7]} 37... Rxd5 {[%clk 0:00:07]} 38. Raxd5 {[%clk 0:01:32.1]}
38... Rxd5 {[%clk 0:00:07.9]} 39. Rh1 {[%clk 0:01:26.9]} 39... Kh8 {[%clk
0:00:07.4]} 40. Rh6 {[%clk 0:01:25.6]} 40... e5 {[%clk 0:00:05.3]} 41. Rh5
{[%clk 0:01:22.9]} 41... e4 {[%clk 0:00:05]} 42. g4 {[%clk 0:01:22.7]} 42... Rd2
{[%clk 0:00:02.8]} 43. g5 {[%clk 0:01:17.4]} 43... e3 {[%clk 0:00:01.8]} 44. g6
{[%clk 0:01:16.8]} 1-0